Cogmind - Beta 17 @@@ ROGUE MODE // 2026.07.12 @ 14:04:31 Player: Spyto Result: Destroyed by as-32640 with Assembled Heavy Rifle Performance ------------- Evolutions (0) 0 Regions Visited (2) 400 Robots Destroyed (6) 30 Value Destroyed (161) 161 Prototype IDs (0) 0 Alien Tech Used (0) 0 Bonus (0) 0 TOTAL SCORE: 591 Bonus ------- None Cogmind --------- Core Integrity 0/250 Matter 300/300 Energy 246/250 System Corruption 0% Temperature Cool (2) Movement Walking (130) Location -10/Mines Parts ------- > --- POWER (1) -------- Ion Engine > --- PROPULSION (2) --- Titanium Leg > --- UTILITY (2) ------ Small Storage Unit > --- WEAPON (2) ------- (None) > --- INVENTORY (8) ---- Light Ion Engine Aluminum Leg Aluminum Leg Improved Heat Sink Signal Interpreter Peak State ------------ > --- POWER ------------ Light Ion Engine > --- PROPULSION ------- Aluminum Leg Aluminum Leg > --- UTILITY ---------- Small Storage Unit Terrain Scanner > --- WEAPON ----------- Medium Laser > --- INVENTORY -------- Ion Engine Light Ion Engine Aluminum Leg Aluminum Leg Improved Heat Sink Signal Interpreter Small Laser Light Cannon [Rating: 7] Favorites ----------- Power Light Ion Engine Engine Light Ion Engine Propulsion Aluminum Leg Treads Light Treads Leg Aluminum Leg Utility Small Storage Unit Device Terrain Scanner Storage Small Storage Unit Weapon Medium Laser Energy Gun Medium Laser Ballistic Gun Light Assault Rifle Ballistic Cannon Light Cannon Build | -11 -10 -10 ------- Run | Yrd Mat Min Slots Evolved . | . . . Power . | . . . Propulsion . | . . . Utility . | . . . Weapon . | . . . Parts Attached 13 | 7 . 6 Power 2 | 1 . 1 Engine 2 | 1 . 1 Core . | . . . Reactor . | . . . Propulsion 5 | 3 . 2 Treads 1 | 1 . . Leg 4 | 2 . 2 Wheel . | . . . Hover . | . . . Flight . | . . . Utility 2 | 1 . 1 Device 1 | . . 1 Storage 1 | 1 . . Processor . | . . . Hackware . | . . . Protection . | . . . Artifact . | . . . Weapon 4 | 2 . 2 Energy Gun 2 | 1 . 1 Energy Cannon . | . . . Ballistic Gun 1 | 1 . . Ballistic Cannon 1 | . . 1 Launcher . | . . . Special Weapon . | . . . Impact Weapon . | . . . Slashing Weapon . | . . . Piercing Weapon . | . . . Special Melee Weapon . | . . . Unidentified Prototypes . | . . . Parts Lost 8 | . . 8 Power 1 | . . 1 Propulsion 2 | . . 2 Utility 1 | . . 1 Weapon 4 | . . 4 Highest Loss Streak 5 | . . 5 To Critical Strikes . | . . . Average Backups 6 | 3 7 6 Power 1 | . 1 1 Propulsion 2 | 2 3 1 Utility 1 | . . 2 Weapon 1 | . 1 1 Tool/Special . | . . . Unused Backups 10 | . 1 9 Power 1 | . . 1 Propulsion 6 | . 1 5 Utility 3 | . . 3 Weapon . | . . . Tool/Special . | . . . Average Slot Usage (%) 75 | . 85 70 Engine 12 | . 14 11 Leg 27 | . 28 26 Device 4 | . . 6 Storage 14 | . 14 14 Energy Gun 10 | . 14 8 Ballistic Gun 5 | . 14 1 Peak Build Rating 7 | 6 6 7 Average Rating 5 | 4 6 6 On Entrance 4 | . 6 6 Avg Prop Armor Cover (%) 21 | 21 . . Naked Turns . | . . . Heaviest Build 11 | 11 11 11 Greatest Support 27 | 20 20 27 Greatest Overweight (x) . | . . . Average Overweight (x) . | . . . Largest Inventory Capacity 8 | 8 8 8 Average Capacity 7 | 6 8 8 Most Carried 8 | 6 8 8 Average Carried 6 | 3 7 6 Final Capacity 8 | 8 8 8 Final Carried 8 | 6 8 5 Class Distribution -------------------- 100% | Mutant Dominant Class ---------------- Mutant | -10/Materials Mutant | -10/Mines Resources | -11 -10 -10 ----------- Run | Yrd Mat Min Matter Collected 324 | 171 33 120 Remotely . | . . . Salvage Created 124 | . 33 91 Parts 9 | . . 9 Haulers Intercepted . | . . . Recyclers Shooed . | . . . Parts Field Recycled . | . . . Retrieved Matter . | . . . Parts Self-Destructed . | . . . Prevented . | . . . Parts Restored . | . . . Kills | -11 -10 -10 ------- Run | Yrd Mat Min Combat Hostiles Destroyed 5 | . 2 3 Guns 4 | . 2 2 Cannons 1 | . . 1 Classes Destroyed 4 | . 1 3 Tunneler 1 | . . 1 Swarmer 2 | . 2 . Grunt 2 | . . 2 Demolisher 1 | . . 1 Best Kill Streak 3 | . 2 3 Combat Bots Only 2 | . 2 2 Max Kills in Single Turn 1 | . 1 1 Gunslinging . | . . . Exploded . | . . . Melee . | . . . Uniques/NPCs Destroyed . | . . . Combat | -11 -10 -10 -------- Run | Yrd Mat Min Hostile Shots Fired 91 | . 16 75 Missed 27 | . 3 24 Hits 64 | . 13 51 Melee 3 | . . 3 Projectile 61 | . 13 48 AOE 15 | . . 15 Damage Taken 1153 | . 103 1050 Core 259 | . 15 244 Absorbed by Shields . | . . . Core Remaining (%) 100 | 100 . . Volleys Fired 26 | 1 8 17 Largest 2 | 1 2 2 Hottest 70 | 50 70 70 Shots Fired 50 | 1 16 33 Gun 44 | 1 16 27 Cannon 6 | . . 6 Launcher . | . . . Special . | . . . Kinetic 24 | . 8 16 Thermal 26 | 1 8 17 Explosive . | . . . Electromagnetic . | . . . Robot Hit Streak 13 | . 5 13 Robot Miss Streak 2 | 1 2 2 Penetration Max . | . . . Secondary Targets . | . . . Shots Hit Robots 36 | . 10 26 Core Hits 13 | . 3 10 Critical Kills . | . . . Critical Parts Destroyed . | . . . Critical Strikes 1 | . . 1 Blast 1 | . . 1 Melee Attacks . | . . . Impact . | . . . Slashing . | . . . Piercing . | . . . Sneak Attacks . | . . . Combat Hostiles . | . . . Follow-up Attacks . | . . . Damage Inflicted 403 | 1 99 303 Guns 336 | . 99 237 Cannons 61 | . . 61 Explosions . | . . . Melee . | . . . Ramming 6 | 1 . 5 Kinetic 180 | . 48 132 Thermal 217 | . 51 166 Explosive . | . . . Electromagnetic . | . . . Impact . | . . . Slashing . | . . . Piercing . | . . . Highest Corruption . | . . . Average Corruption . | . . . Corruption Purged . | . . . Corruption Blocked . | . . . Overload Shots . | . . . Overflow Damage . | . . . Projectiles . | . . . Explosions . | . . . Melee . | . . . Knockbacks 2 | . . 2 Impact . | . . . Kinetic 2 | . . 2 Secondary . | . . . Self-Inflicted Damage . | . . . Shots . | . . . Rammed . | . . . Targets Rammed 5 | 2 . 3 Kicked 5 | 2 . 3 Crushed . | . . . Highest Temperature 259 | . 120 259 Average Temperature 99 | . 61 120 Received Heat Transfer 199 | . . 199 Siege Activations . | . . . Martial Activations . | . . . Shielding Activations . | . . . Robots Disrupted . | . . . Combat Hostiles . | . . . Robots Corrupted . | . . . Combat Hostiles . | . . . Parts Fried . | . . . Impact Corruptions . | . . . Robots Melted . | . . . Combat Hostiles . | . . . Parts Melted 1 | . . 1 Heat Transferred 606 | . 148 458 Parts Sabotaged . | . . . Parts Stolen . | . . . Parts Stripped . | . . . Power Chain Reactions . | . . . Alert | -11 -10 -10 ------- Run | Yrd Mat Min Maximum Alert Level . | . . . Low Security (%) 100 | 100 100 100 Level 1 . | . . . Level 2 . | . . . Level 3 . | . . . Level 4 . | . . . Level 5 . | . . . High Security . | . . . Max Security . | . . . Peak Influence 55 | . 55 34 Initial 9 | . . 9 Average 6 | . 14 4 Influence Increases 155 | . 65 90 Destroy 0b10 Robot/C 100 | . 40 60 Destroy 0b10 Robot/NC 5 | . . 5 Destroy Leader 20 | . 10 10 Lose Combat Pursuer 30 | . 15 15 Influence Decreases 155 | . 40 115 Entered New Map 16 | . . 16 Time Decay 109 | . 40 69 Lost Part 30 | . . 30 Squads Dispatched 2 | . 1 1 Investigation 1 | . . 1 Extermination . | . . . Reinforcement 1 | . 1 . Assault . | . . . Garrison . | . . . Intercept . | . . . Searches Triggered . | . . . Construction Impeded . | . . . Haulers Reinforced . | . . . Active Scanning Responses . | . . . Cargo Convoy Interrupts . | . . . Stealth | -11 -10 -10 --------- Run | Yrd Mat Min Distress Signals . | . . . Communications Jammed . | . . . Distress Signals . | . . . Times Spotted 22 | . 5 17 Peak Tracking Total 7 | . 4 7 Tactical Retreats 2 | . 1 1 Traps | -11 -10 -10 ------- Run | Yrd Mat Min Traps Triggered . | . . . Indirectly . | . . . Trap Hack Attempts . | . . . Triggered . | . . . Disarmed . | . . . Reprogrammed . | . . . Reused . | . . . Traps Extracted . | . . . Installed . | . . . Triggered . | . . . Machines | -11 -10 -10 ---------- Run | Yrd Mat Min Machines Disabled . | . . . Max in Single Turn . | . . . Machines Repaired . | . . . Machines Dismantled . | . . . Machines Sabotaged . | . . . Overloaded Fab Kills . | . . . Hacking | -11 -10 -10 --------- Run | Yrd Mat Min Machines Accessed 1 | . 1 . Terminals 1 | . 1 . Fabricators . | . . . Repair Stations . | . . . Recycling Units . | . . . Scanalyzers . | . . . Garrison Access . | . . . Total Hacks 2 | . 2 . Successful 2 | . 2 . Failed . | . . . Catastrophic . | . . . Database Lockouts . | . . . Manual 2 | . 2 . Terminals 2 | . 2 . Fabricators . | . . . Repair Stations . | . . . Recycling Units . | . . . Scanalyzers . | . . . Garrison Access . | . . . Terminal Hacks 2 | . 2 . Record 1 | . 1 . Zone Layout 1 | . 1 . Fabricator Hacks . | . . . Repair Station Hacks . | . . . Recycling Unit Hacks . | . . . Scanalyzer . | . . . Garrison Access Hacks . | . . . Unauthorized Hacks . | . . . Terminals . | . . . Fabricators . | . . . Repair Stations . | . . . Recycling Units . | . . . Scanalyzers . | . . . Garrison Access . | . . . Data Cores Recovered . | . . . Used . | . . . Hacking Detections 2 | . 2 . Full Trace Events . | . . . Feedback Events . | . . . Feedback Blocked . | . . . Robot Schematics Acquired . | . . . Robots Built . | . . . Authchips . | . . . Time . | . . . Total Robot Build Rating . | . . . Part Schematics Acquired . | . . . Parts Built . | . . . Authchips . | . . . Time . | . . . Total Part Build Rating . | . . . Part Studies Acquired . | . . . Parts Repaired . | . . . Time . | . . . Parts Recycled . | . . . Recycled Matter . | . . . Retrieved Matter . | . . . Retrieved Components . | . . . Parts Scanalyzed . | . . . Part Schematics Acquired . | . . . Parts Damaged . | . . . Bothacking | -11 -10 -10 ------------ Run | Yrd Mat Min Used RIF Installer . | . . . Robots Hacked . | . . . Non-combat . | . . . Combat . | . . . Robot Hacks Applied . | . . . Relay Couplers Released . | . . . Fabnet Peak Effective % . | . . . Robots Rewired . | . . . Allies Hacked . | . . . Hacks Repelled . | . . . Allies | -11 -10 -10 -------- Run | Yrd Mat Min Total Allies . | . . . Largest Group . | . . . Highest-Rated Group . | . . . Highest-Rated Ally . | . . . Total Orders . | . . . Ally Attacks . | . . . Total Damage . | . . . Kills . | . . . Allies Corrupted . | . . . Allies Melted . | . . . Intel | -11 -10 -10 ------- Run | Yrd Mat Min Active Infowar (turns) 248 | . . 248 Terrain 248 | . . 248 Robot Analysis Total . | . . . Derelict Logs Recovered . | . . . Drone Launches . | . . . Drone Recoveries . | . . . Exploration | -11 -10 -10 ------------- Run | Yrd Mat Min Turns Passed 852 | 103 239 510 Spaces Moved 603 | 70 173 360 Core 3 | 3 . . Treads 4 | 4 . . Legs 596 | 63 173 360 Wheels . | . . . Hover . | . . . Flight . | . . . Fastest Speed 50 | 50 120 120 Average Speed 121 | 119 120 121 Slowest Speed 160 | 160 120 130 Overloaded Moves . | . . . Propulsion Burnouts . | . . . Robots Hopped . | . . . Potential Cave-ins . | . . . Cave-ins Triggered . | . . . Exploration Rate (%) 30 | 3 22 65 Regions Visited 2 Branch Regions 1 Pre-discovered Areas . | . . . Known Exits Taken . | . . . Unknown Exits Taken 2 | 1 1 . Scrap Searched 1 | . . 1 Spaces Dug . | . . . Terrain Destroyed . | . . . Melee . | . . . Projectile . | . . . AOE . | . . . Terrain Rammed . | . . . Walls Destroyed . | . . . Machines Disabled . | . . . Actions | -11 -10 -10 --------- Run | Yrd Mat Min Total 677 | 85 191 401 Wait 11 | . 5 6 Move 602 | 70 172 360 Hop . | . . . Pick Up 13 | 5 4 4 Fast Attach 10 | 7 . 3 Attach 3 | . . 3 Detach 1 | 1 . . Swap . | . . . Drop 7 | . 2 5 Fire 26 | 1 8 17 Melee . | . . . Ram . | . . . Kick 4 | 1 . 3 Crush . | . . . Escape Stasis . | . . . Rewire . | . . . Trap . | . . . Miscellaneous . | . . . Route ------- -11/Scrapyard -10/Materials -10/Mines History --------- Turn | Location | Event 8 | -11/Scrapyard | Discovered new exit (range 15) 104 | -11/Scrapyard | Entered Materials 300 | -10/Materials | Discovered new exit (range 10) 310 | -10/Materials | Build established: Mutant 343 | -10/Materials | Entered Mines 613 | -10/Mines | Assembled infested the area 618 | -10/Mines | Assisted by a Guerilla fighting off Assembled 658 | -10/Mines | Met a Derelict shopkeep closing up shop 670 | -10/Mines | Core integrity fell below 50% 705 | -10/Mines | Lost 5 parts (1p1n3w) 819 | -10/Mines | Core integrity fell below 20% 853 | -10/Mines | Destroyed by as-32640 with Assembled Heavy Rifle Last Messages --------------- blasted off. 00671_ D-53 Grenadier destroyed. 00672_ The unstable cave ceiling collapses. 00672_ U-05 Engineer builds a Wall. 00673_ The unstable cave ceiling collapses. 00674_ Lgt. Cannon destroyed. 00674_ Sml. Laser destroyed. 00674_ D-53 Grenadier destroyed. 00676_ The unstable cave ceiling collapses. 00681_ Acquired Titanium Leg. 00682_ The unstable cave ceiling collapses. 00799_ Acquired 10 matter. 00803_ Acquired 1 matter. 00835_ Kicked as-36092. 00838_ Kicked as-36092 out of the way. 00843_ as-72504 destroyed. 00843_ Aluminum Leg destroyed. 00844_ Acquired 19 matter. 00849_ Terrain Scanner destroyed. 00850_ as-86952 destroyed. Map ----- +----------------------------------------------------+ | ???????## ##????# " #???????????? | | ????#???### #????# * #?#???????#?? | | ??????????## #????## % ##???????????? | | ???????????# ####### # # !% ##?#?#???????? | | ???????????# ### ] #??#????? | | ???????????## #?# # # ### #???????? | | ?#??????????## ### ##### ## ### #???????? | | ???#?#???????# ] | # #??? #???????? | | #????????##??## ####### %! # ### #????????????? | | ????????## #??## ##?### #! #### ### #??? ????????? | | ???#????? ??#####???###!!##?# ##???????????? | | ?????????# ???#######?##%*#??#######????????????? | | ????#????# ?#?##" "?#?#=|#?????????????????????? | | #????????# ???#!! !?###!%###???????????????????? | | ###?????## #??#!/ !?## !*=#??#?????#???????????? | | ###?????# ##?# % ?# #????????????????????? | | #??????# ####/Y### #??????????#???????#?? | | #??#????# # Y a! ##??????#?????????????? | | ##?#?????# = ##??????#??????????????? | | ##????????# ## ##?#???#??????????????? | | ##??#??????## #???#??????#?????????? | | #??#????????# ### %] #????????????????????? | | #####??###??# #?## #???????#????????????? | | #?## ##?# #??## #???#????????????????? | | #?# #?# #???## #????????????????????? | | ## ### ### #??#?####*@ ##????????????????????? | | ?#=! ## #???????#%% #?????????????????????? | | ?# ! #???????#%!##?????????????????????? | | ?##=###### #???????#a=#??????????????????????? | | ??# #?#??# ###???????#!!%??????????????????????? | | ### ####?# #?????????# ##?????????????????????? | | = ## ##?????????#a #??????????????????????? | | """ ## #??#??????? #??????????????????????? | | """ ######??????????#####?????????????????????? | | """ #?????????????????????????????????????????? | | #?????????????????????????????????????????? | | "" """ #?????????????????????????????????????????? | | "" """ #??????#??????????????????????????????????? | | "" """ #?????#???????????????????????????????????? | | #?????????????????????????????????????????? | | #######??????????????????????????????????????????? | | ?????????????????????????????????????????????????? | | ?????????????????????????????????????????????????? | | ?????????????????????????????????????????????????? | | ?????????????????????????????????????????????????? | | ?????????????????????????????????????????????????? | | ?????????????????????????????????????????????????? | | ?????????????????????????????????????????????????? | | ?????????????????????????????????????????????????? | | ?????????????????????????????????????????????????? | +----------------------------------------------------+ Best States ------------- Heat Dissipation 25 Energy Generation 10 Energy Capacity 250 Matter Stores 300 Matter Capacity 300 Sight Range 16 Terrain Scan Range 14 Terrain Scan Density 10 Evasion (%) 55 Recoil Reduction 1 Item Schematics ----------------- None Robot Schematics ------------------ None Fabricated ------------ Nothing Repaired ---------- Nothing Studied --------- None Alien Tech Used ----------------- None Achievements -------------- None Challenges ------------ None Game ------ Seed CryofiberThermalFocus Manual? 0 Play Time 00:22:51 Cumulative 8.8 hours Start 2026.07.12 @ 11:54:15 End 2026.07.12 @ 14:04:31 Sessions 1 Manual Loads 0 Difficulty Rogue Special Mode None Game No. 16 Rogue 16 Adventurer 0 Explorer 0 Win Type - Total 0 Types 0/0/0/0/0/0/0/0/0/0 Lore% 3 Gallery% 11 Achievement% 10 Wizard Run 0 Options --------- Layout 1 ASCII 0 Keyboard 1 Movement Arrows Keybinds 0 Fullscreen 2 Font 24/Smallcaps Map View 50x35 Zoom Use 0% Tactical HUD 1 Map Filters NONE Filters NONE Steam 1 RUN: 70208ce3-22f9-4547-a796-c09c498e1d32